Cogmind - Beta 15 @@@ ROGUE MODE // 2025.08.23 @ 18:04:59 Player: swetpototo Result: Destroyed by 7E-E0R(g) with Beamcaster Performance ------------- Evolutions (2) 1000 Regions Visited (6) 1200 Robots Destroyed (79) 395 Value Destroyed (2462) 2462 Prototype IDs (5) 100 Alien Tech Used (0) 0 Bonus (496) 496 TOTAL SCORE: 5653 Bonus ------- High Alert Combat Kills 132 Follower Combat Kills 72 Registered with UFD 300 Friendly Fire -8 Cogmind --------- Core Integrity 0/550 Matter 290/300 Energy 99/100 System Corruption 1% Temperature Cool (36) Movement Core (100) Ox1 Location -8/Scraptown Parts ------- > --- POWER (1) -------- (None) > --- PROPULSION (3) --- (None) > --- UTILITY (3) ------ (None) > --- WEAPON (4) ------- Companion Sword > --- INVENTORY (5) ---- High-capacity Storage Unit Advanced Visual Processing Unit Drone Bay (2/2) Minigun Improved Grenade Launcher Peak State ------------ > --- POWER ------------ Cooled Ion Engine > --- PROPULSION ------- Carbon-fiber Leg Carbon-fiber Leg Flexi-carbon Leg > --- UTILITY ---------- High-capacity Storage Unit Compact Matter Pod Hardened Medium Armor Plating > --- WEAPON ----------- Advanced Assault Cannon Chainsword Companion Sword > --- INVENTORY -------- Cooled Ion Engine Cooled Ion Engine Advanced Treads Cooling System Cooling System High-capacity Storage Unit Large Battery Large Battery Compact Battery Advanced Visual Processing Unit Hacking Suite Improved System Shield Tractor Beam Drone Bay Drone Bay Minigun Flak Cannon Mini Grenade Launcher Plasma Cutter Scythe [Rating: 40] Favorites ----------- Power Cooled Ion Engine Engine Cooled Ion Engine Propulsion Light Treads Treads Light Treads Leg Carbon-fiber Leg Utility High-capacity Storage Unit Device Tractor Beam Storage High-capacity Storage Unit Protection Hardened Medium Armor Plating Weapon Flak Cannon Energy Gun EM Pulse Gun Ballistic Gun Minigun Ballistic Cannon Flak Cannon Launcher Mini Grenade Launcher Special Weapon Plasma Cutter Slashing Weapon Companion Sword Build | -11 -10 -9 -8 -8 -8 -8 ------- Run | Yrd Mat Mat Mat Sto Rec Scr Slots Evolved 4 | . . 2 2 . . . Power . | . . . . . . . Propulsion 1 | . . 1 . . . . Utility 1 | . . . 1 . . . Weapon 2 | . . 1 1 . . . Parts Attached 62 | . 7 7 8 23 4 13 Power 5 | . . 2 . 3 . . Engine 5 | . . 2 . 3 . . Core . | . . . . . . . Reactor . | . . . . . . . Propulsion 19 | . 2 1 2 6 2 6 Treads 15 | . 2 1 2 6 2 2 Leg 4 | . . . . . . 4 Wheel . | . . . . . . . Hover . | . . . . . . . Flight . | . . . . . . . Utility 15 | . 3 . 1 6 1 4 Device 7 | . . . . 5 . 2 Storage 5 | . 3 . . . . 2 Processor . | . . . . . . . Hackware . | . . . . . . . Protection 3 | . . . 1 1 1 . Artifact . | . . . . . . . Weapon 23 | . 2 4 5 8 1 3 Energy Gun 8 | . 2 2 4 . . . Energy Cannon . | . . . . . . . Ballistic Gun 4 | . . 1 1 2 . . Ballistic Cannon 6 | . . . . 4 1 1 Launcher 1 | . . . . 1 . . Special Weapon 1 | . . 1 . . . . Impact Weapon . | . . . . . . . Slashing Weapon 3 | . . . . 1 . 2 Piercing Weapon . | . . . . . . . Special Melee Weapon . | . . . . . . . Unidentified Prototypes 3 | . . . 1 1 . 1 Parts Lost 21 | . . 3 3 9 2 4 Power 2 | . . 1 . 1 . . Propulsion 7 | . . . 2 3 1 1 Utility 5 | . . . . 3 . 2 Weapon 7 | . . 2 1 2 1 1 Highest Loss Streak 4 | . . 3 2 2 2 4 To Critical Strikes 2 | . . . 1 . . 1 Average Backups 17 | . 7 13 17 19 19 19 Power 2 | . 1 1 2 3 2 1 Propulsion 2 | . 2 2 2 1 1 2 Utility 9 | . 2 4 8 9 11 10 Weapon 3 | . 2 4 2 3 3 3 Tool/Special . | . . . . . . . Unused Backups 33 | . 3 . 1 11 2 16 Power 8 | . . . 1 6 . 1 Propulsion 3 | . . . . . . 3 Utility 20 | . 3 . . 5 2 10 Weapon 2 | . . . . . . 2 Tool/Special . | . . . . . . . Average Slot Usage (%) 98 | . 98 95 95 97 99 99 Engine 9 | . 14 10 9 9 9 9 Treads 25 | . 21 32 25 25 26 23 Leg 1 | . 6 . . . . 3 Device 5 | . . . . 11 9 3 Storage 14 | . 26 22 18 10 9 14 Protection 6 | . . . 7 4 9 9 Energy Gun 6 | . 27 26 24 4 . . Ballistic Gun 10 | . . 2 10 6 16 14 Ballistic Cannon 15 | . . . . 23 19 18 Slashing Weapon 1 | . . . . . . 2 Peak Build Rating 40 | . 7 13 24 30 29 40 Average Rating 25 | . 6 11 17 24 26 32 On Entrance 15 | 6 6 7 13 23 24 27 Naked Turns 1 | . . . . . . 1 Heaviest Build 90 | 11 90 54 58 77 77 77 Greatest Support 67 | 20 40 60 60 60 62 67 Greatest Overweight (x) 5 | . 2 1 1 1 1 5 Average Overweight (x) . | . . . . . 1 1 Largest Inventory Capacity 25 | . 25 20 20 20 20 20 Average Capacity 19 | . 13 20 20 20 20 19 Most Carried 20 | . 9 17 20 20 20 20 Average Carried 18 | . 7 13 17 19 19 19 Final Capacity 20 | 8 20 20 20 20 20 5 Final Carried 20 | 6 9 17 19 20 19 5 Class Distribution -------------------- 69% | Tank 14% | Gunner 9% | Mutant 3% | Scavenger-Gunner Dominant Class ---------------- Mutant | -10/Materials Gunner | -9/Materials Tank | -8/Materials Tank | -8/Storage Tank | -8/Recycling Tank | -8/Scraptown Resources | -11 -10 -9 -8 -8 -8 -8 ----------- Run | Yrd Mat Mat Mat Sto Rec Scr Matter Collected 2680 | 200 20 142 245 1754 169 150 Remotely 1890 | . . . . 1721 169 . Salvage Created 2569 | . 53 473 265 1408 370 . Parts 145 | . 7 34 15 75 14 . Haulers Intercepted 6 | . . . 1 5 . . Recyclers Shooed 3 | . . 1 . . 2 . Parts Field Recycled . | . . . . . . . Retrieved Matter . | . . . . . . . Parts Self-Destructed . | . . . . . . . Prevented . | . . . . . . . Kills | -11 -10 -9 -8 -8 -8 -8 ------- Run | Yrd Mat Mat Mat Sto Rec Scr Combat Hostiles Destroyed 60 | . 3 11 3 39 4 . Melee 1 | . . . . 1 . . Guns 15 | . 3 8 1 2 1 . Cannons 36 | . . . . 33 3 . AOE 7 | . . 2 2 3 . . Classes Destroyed 13 | . 1 4 5 3 . . Worker 6 | . . . 2 4 . . Builder 2 | . . 2 . . . . Tunneler 1 | . . . 1 . . . Hauler 6 | . . . 1 5 . . Recycler 3 | . . . . 1 2 . Watcher 1 | . . . 1 . . . Swarmer 9 | . 3 3 . 3 . . Grunt 27 | . . 5 2 20 . . Brawler 1 | . . . . 1 . . Duelist 3 | . . 1 . 2 . . Protector 2 | . . . . 2 . . Sentry 17 | . . 2 . 11 4 . Hunter 1 | . . . 1 . . . Best Kill Streak 6 | . 3 5 4 6 6 . Combat Bots Only 5 | . 3 4 3 5 4 . Max Kills in Single Turn 3 | . 1 2 2 3 1 . Gunslinging . | . . . . . . . Exploded 3 | . . 1 1 3 . . Melee 1 | . . . . 1 . . Uniques/NPCs Destroyed . | . . . . . . . Combat | -11 -10 -9 -8 -8 -8 -8 -------- Run | Yrd Mat Mat Mat Sto Rec Scr Hostile Shots Fired 368 | . 16 39 49 135 28 101 Missed 99 | . 2 15 14 42 3 23 Hits 269 | . 14 24 35 93 25 78 Melee 31 | . . . . 2 . 29 Projectile 238 | . 14 24 35 91 25 49 AOE 1 | . . . . . . 1 Critical Strikes 11 | . . . 1 6 1 3 Part Disruptions 1 | . . . . . . 1 Damage Taken 3620 | . 117 389 416 1457 375 866 Core 598 | . 8 35 32 124 45 354 Absorbed by Shields . | . . . . . . . Regen/Repaired (Parts) 217 | . . . . 217 . . Core Remaining (%) 95 | 100 96 91 . . . . Volleys Fired 120 | . 7 24 12 70 7 . Largest 4 | . 2 3 4 4 4 . Hottest 239 | . 80 130 239 148 119 . Shots Fired 412 | . 14 62 38 269 29 . Gun 179 | . 14 58 38 54 15 . Cannon 228 | . . . . 214 14 . Launcher 1 | . . . . 1 . . Special 4 | . . 4 . . . . Kinetic 310 | . . . 13 268 29 . Thermal 21 | . . 4 17 . . . Explosive 1 | . . . . 1 . . Electromagnetic 80 | . 14 58 8 . . . Robot Hit Streak 13 | . 1 13 8 11 4 . Robot Miss Streak 18 | . 2 3 3 18 9 . Penetration Max . | . . . . . . . Secondary Targets 6 | . 1 4 1 . . . Max Gunslinging Chain 1 | . 1 1 1 . . . Shots Hit Robots 283 | . 5 43 22 199 11 3 Core Hits 223 | . 3 21 10 180 9 . Critical Kills . | . . . . . . . Critical Parts Destroyed 1 | . . . . 1 . . Critical Strikes 4 | . . . 2 1 1 . Burn 2 | . . . 2 . . . Destroy 1 | . . . . 1 . . Blast 1 | . . . . . 1 . Melee Attacks 11 | . . . . 5 . 6 Impact . | . . . . . . . Slashing 11 | . . . . 5 . 6 Piercing . | . . . . . . . Sneak Attacks 1 | . . . . 1 . . Combat Hostiles . | . . . . . . . Follow-up Attacks 2 | . . . . . . 2 Damage Inflicted 5134 | . 54 683 577 3427 271 122 Guns 1528 | . 54 543 362 459 110 . Cannons 2852 | . . . . 2691 161 . Explosions 489 | . . 120 203 166 . . Melee 215 | . . . . 93 . 122 Ramming 50 | . . 20 12 18 . . Kinetic 3498 | . . . 77 3150 271 . Thermal 532 | . . 120 412 . . . Explosive 166 | . . . . 166 . . Electromagnetic 673 | . 54 543 76 . . . Impact . | . . . . . . . Slashing 215 | . . . . 93 . 122 Piercing . | . . . . . . . Highest Corruption 1 | . . . . 1 1 . Average Corruption 1 | . . . . 1 1 . Corruption Purged . | . . . . . . . Corruption Blocked . | . . . . . . . Effects 12 | . . . . 7 5 . Message Errors 2 | . . . . 1 1 . Matter Fused 2 | . . . . 1 1 . Energy Discharges 2 | . . . . 1 1 . Data Loss (minor) 2 | . . . . 1 1 . Data Loss (major) 2 | . . . . 2 . . Misfires 1 | . . . . . 1 . Alerts 1 | . . . . 1 . . Overload Shots . | . . . . . . . Overflow Damage 56 | . . . . 22 . 34 Projectiles . | . . . . . . . Explosions 20 | . . . . 20 . . Melee 36 | . . . . 2 . 34 Knockbacks 78 | . . . . 74 4 . Impact . | . . . . . . . Kinetic 68 | . . . . 66 2 . Secondary 10 | . . . . 8 2 . Self-Inflicted Damage 126 | . . 109 17 . . . Shots 4 | . . 3 1 . . . Rammed 5 | . . 2 1 2 . . Targets Rammed 7 | . . 2 2 3 . . Kicked . | . . . . . . . Crushed 2 | . . . 1 1 . . Highest Temperature 485 | . 54 356 342 485 271 . Average Temperature 146 | . 28 147 147 159 150 . Received Heat Transfer 1143 | . . 126 36 765 108 108 Effects 22 | . . . 1 20 1 . Shutdowns 2 | . . . . 2 . . Energy Bleed 4 | . . . . 3 1 . Interference 3 | . . . 1 2 . . Matter Decay 2 | . . . . 2 . . Short Circuit 1 | . . . . 1 . . Damage (minor) 2 | . . . . 2 . . Damage (major) 8 | . . . . 8 . . Siege Activations . | . . . . . . . Martial Activations . | . . . . . . . Shielding Activations . | . . . . . . . Robots Disrupted . | . . . . . . . Combat Hostiles . | . . . . . . . Robots Corrupted 1 | . . 1 . . . . Combat Hostiles 1 | . . 1 . . . . Parts Fried 3 | . . 3 . . . . Impact Corruptions . | . . . . . . . Robots Melted 1 | . . . 1 . . . Combat Hostiles . | . . . . . . . Parts Melted 2 | . . . 2 . . . Heat Transferred 855 | . . 150 705 . . . Parts Sabotaged . | . . . . . . . Parts Stolen . | . . . . . . . Parts Stripped . | . . . . . . . Power Chain Reactions 6 | . . 4 2 . . . Alert | -11 -10 -9 -8 -8 -8 -8 ------- Run | Yrd Mat Mat Mat Sto Rec Scr Maximum Alert Level 2 | . . 1 . 2 1 . Low Security (%) 70 | . 100 90 100 36 92 . Level 1 13 | . . 9 . 25 7 . Level 2 15 | . . . . 38 . . Level 3 . | . . . . . . . Level 4 . | . . . . . . . Level 5 . | . . . . . . . High Security . | . . . . . . . Max Security . | . . . . . . . Peak Influence 625 | . 90 216 99 625 235 . Initial 235 | . . . 67 13 235 . Average 157 | . 24 86 48 319 31 . Influence Increases 1905 | . 111 354 133 1195 112 . Destroy 0b10 Robot/C 1200 | . 60 220 60 780 80 . Destroy 0b10 Robot/NC 105 | . . 10 25 60 10 . Destroy Leader 314 | . 10 60 24 220 . . Allied During Kill 17 | . . . . 17 . . Successful Hack 66 | . 11 5 . 31 19 . Disable Machine 60 | . . 15 15 30 . . Destroy Structure 38 | . . 14 9 12 3 . Lose Combat Pursuer 105 | . 30 30 . 45 . . Influence Decreases 1905 | . 111 194 260 623 717 . Entered New Map 483 | . . . 93 20 370 . Time Decay 1092 | . 111 164 147 473 197 . Lost Part 140 | . . 30 20 90 . . Lost Ally 40 | . . . . 40 . . Purge Threat 150 | . . . . . 150 . Squads Dispatched 13 | . . 2 2 9 . . Investigation 6 | . . . . 6 . . Extermination . | . . . . . . . Reinforcement 5 | . . 2 2 1 . . Assault 2 | . . . . 2 . . Garrison . | . . . . . . . Intercept . | . . . . . . . Searches Triggered . | . . . . . . . Construction Impeded 1 | . . 1 . . . . Haulers Reinforced . | . . . . . . . Active Scanning Responses . | . . . . . . . Cargo Convoy Interrupts . | . . . . . . . Stealth | -11 -10 -9 -8 -8 -8 -8 --------- Run | Yrd Mat Mat Mat Sto Rec Scr Distress Signals 8 | . . 2 2 4 . . Communications Jammed . | . . . . . . . Distress Signals . | . . . . . . . Times Spotted 107 | . 5 15 16 52 4 15 Peak Tracking Total 23 | . 3 5 8 10 4 23 Tactical Retreats 4 | . 1 1 . 2 . . Traps | -11 -10 -9 -8 -8 -8 -8 ------- Run | Yrd Mat Mat Mat Sto Rec Scr Traps Triggered 5 | . . 2 . 3 . . Indirectly . | . . . . . . . Trap Hack Attempts . | . . . . . . . Triggered . | . . . . . . . Disarmed . | . . . . . . . Reprogrammed . | . . . . . . . Reused . | . . . . . . . Traps Extracted . | . . . . . . . Installed . | . . . . . . . Triggered . | . . . . . . . Machines | -11 -10 -9 -8 -8 -8 -8 ---------- Run | Yrd Mat Mat Mat Sto Rec Scr Machines Disabled 4 | . . 1 1 2 . . Max in Single Turn 1 | . . 1 1 1 . . Machines Repaired . | . . . . . . . Machines Dismantled . | . . . . . . . Machines Sabotaged . | . . . . . . . Overloaded Fab Kills . | . . . . . . . Hacking | -11 -10 -9 -8 -8 -8 -8 --------- Run | Yrd Mat Mat Mat Sto Rec Scr Machines Accessed 30 | . 3 4 . 12 10 1 Terminals 22 | . 3 4 . 10 5 . Fabricators . | . . . . . . . Repair Stations 2 | . . . . 2 . . Recycling Units 5 | . . . . . 5 . Scanalyzers . | . . . . . . . Garrison Access . | . . . . . . . Total Hacks 67 | . 9 10 . 28 18 2 Successful 33 | . 4 4 . 12 11 2 Failed 33 | . 5 5 . 16 7 . Catastrophic 7 | . . 1 . 4 2 . Database Lockouts 1 | . . 1 . . . . Manual 19 | . 4 4 . 8 3 . Terminals 52 | . 9 10 . 21 12 . Fabricators . | . . . . . . . Repair Stations 7 | . . . . 7 . . Recycling Units 6 | . . . . . 6 . Scanalyzers . | . . . . . . . Garrison Access . | . . . . . . . Terminal Hacks 24 | . 4 4 . 8 6 2 Record 1 | . . . . . . 1 Robot Analysis 2 | . . 1 . 1 . . Prototype ID Bank 1 | . 1 . . . . . Open Door 5 | . . . . 4 . 1 Unreport Threat 1 | . . . . . 1 . Locate Traps 1 | . 1 . . . . . Hauler Manifests 1 | . . 1 . . . . Zone Layout 12 | . 2 2 . 3 5 . Fabricator Hacks . | . . . . . . . Repair Station Hacks 4 | . . . . 4 . . Scan Component 2 | . . . . 2 . . Repair 2 | . . . . 2 . . Recycling Unit Hacks 5 | . . . . . 5 . Report Inventory 5 | . . . . . 5 . Scanalyzer . | . . . . . . . Garrison Access Hacks . | . . . . . . . Unauthorized Hacks . | . . . . . . . Terminals . | . . . . . . . Fabricators . | . . . . . . . Repair Stations . | . . . . . . . Recycling Units . | . . . . . . . Scanalyzers . | . . . . . . . Garrison Access . | . . . . . . . Data Cores Recovered . | . . . . . . . Used . | . . . . . . . Hacking Detections 19 | . 2 4 . 9 4 . Full Trace Events 9 | . . 1 . 5 3 . Feedback Events 1 | . . . . 1 . . Corruption 1 | . . . . 1 . . Feedback Blocked . | . . . . . . . Robot Schematics Acquired . | . . . . . . . Robots Built . | . . . . . . . Authchips . | . . . . . . . Time . | . . . . . . . Total Robot Build Rating . | . . . . . . . Part Schematics Acquired . | . . . . . . . Parts Built . | . . . . . . . Authchips . | . . . . . . . Time . | . . . . . . . Total Part Build Rating . | . . . . . . . Parts Repaired 2 | . . . . 2 . . Time 45 | . . . . 45 . . Parts Recycled . | . . . . . . . Recycled Matter . | . . . . . . . Retrieved Matter . | . . . . . . . Retrieved Components . | . . . . . . . Parts Scanalyzed . | . . . . . . . Part Schematics Acquired . | . . . . . . . Parts Damaged . | . . . . . . . Bothacking | -11 -10 -9 -8 -8 -8 -8 ------------ Run | Yrd Mat Mat Mat Sto Rec Scr Used RIF Installer . | . . . . . . . Robots Hacked . | . . . . . . . Non-combat . | . . . . . . . Combat . | . . . . . . . Robot Hacks Applied . | . . . . . . . Relay Couplers Released . | . . . . . . . Fabnet Peak Effective % . | . . . . . . . Robots Rewired . | . . . . . . . Allies Hacked . | . . . . . . . Hacks Repelled . | . . . . . . . Allies | -11 -10 -9 -8 -8 -8 -8 -------- Run | Yrd Mat Mat Mat Sto Rec Scr Total Allies 2 | . . . . 2 . . Largest Group 2 | . . . . 2 . . Highest-Rated Group 62 | . . . . 62 . . Highest-Rated Ally 31 | . . . . 31 . . Total Orders 4 | . . . . . . 4 EXPLORE 3 | . . . . . . 3 RETURN 1 | . . . . . . 1 Ally Attacks 22 | . . . . 22 . . Total Damage 336 | . . . . 336 . . Kills 2 | . . . . 2 . . Allies Corrupted . | . . . . . . . Allies Melted . | . . . . . . . Intel | -11 -10 -9 -8 -8 -8 -8 ------- Run | Yrd Mat Mat Mat Sto Rec Scr Active Infowar (turns) . | . . . . . . . Robot Analysis Total 2 | . . 1 . 1 . . Derelict Logs Recovered . | . . . . . . . Drone Launches 4 | . . . . . . 4 Drone Recoveries 4 | . . . . . . 4 Exploration | -11 -10 -9 -8 -8 -8 -8 ------------- Run | Yrd Mat Mat Mat Sto Rec Scr Turns Passed 6538 | . 389 651 337 1542 909 2710 Spaces Moved 2655 | 1 197 306 170 483 370 1128 Core 8 | . . . . . . 8 Treads 2380 | . 135 306 170 483 370 916 Legs 267 | 1 62 . . . . 204 Wheels . | . . . . . . . Hover . | . . . . . . . Flight . | . . . . . . . Fastest Speed 50 | 120 120 160 160 160 235 50 Average Speed 219 | 120 175 163 165 238 236 236 Slowest Speed 470 | 120 320 240 240 240 240 470 Overloaded Moves . | . . . . . . . Propulsion Burnouts . | . . . . . . . Robots Hopped . | . . . . . . . Potential Cave-ins . | . . . . . . . Cave-ins Triggered . | . . . . . . . Exploration Rate (%) 49 | 2 34 30 26 76 80 95 Regions Visited 6 Branch Regions 3 Pre-discovered Areas . | . . . . . . . Known Exits Taken . | . . . . . . . Unknown Exits Taken 6 | 1 1 1 1 1 1 . Scrap Searched 8 | . . . . . . 8 Spaces Dug 1 | . . . . . . 1 Terrain Destroyed 42 | . . 18 9 11 3 1 Melee 1 | . . . . . . 1 Projectile 3 | . . . . . 3 . AOE 38 | . . 18 9 11 . . Terrain Rammed . | . . . . . . . Walls Destroyed . | . . . . . . . Machines Disabled . | . . . . . . . Actions | -11 -10 -9 -8 -8 -8 -8 --------- Run | Yrd Mat Mat Mat Sto Rec Scr Total 3098 | . 228 400 200 705 391 1174 Wait 113 | . 1 45 . 65 2 . Move 2649 | . 196 305 169 482 369 1128 Hop . | . . . . . . . Pick Up 58 | . 9 12 5 22 3 7 Fast Attach 33 | . 4 4 4 11 2 8 Attach 20 | . 1 4 4 9 2 . Detach 9 | . 1 . 2 3 . 3 Swap 25 | . 2 3 . 11 1 8 Drop 56 | . 7 1 2 24 5 17 Fire 120 | . 7 24 12 70 7 . Melee 8 | . . . . 5 . 3 Ram . | . . . . . . . Kick . | . . . . . . . Crush 7 | . . 2 2 3 . . Escape Stasis . | . . . . . . . Rewire . | . . . . . . . Trap . | . . . . . . . Miscellaneous . | . . . . . . . Route ------- -11/Scrapyard -10/Materials -9/Materials -8/Materials -8/Storage -8/Recycling (discovered 2 exits: [*Fac] / *Scr) -8/Scraptown (discovered 2 exits: [*Fac x2]) History --------- Turn | Location | Event 1 | -11/Scrapyard | Discovered new exit (range 0) 1 | -11/Scrapyard | Entered Materials 238 | -10/Materials | Discovered new exit (range 9) 301 | -10/Materials | Build established: Mutant 390 | -10/Materials | Entered another Materials area 390 | -9/Materials | Evolved 2 slots: Propulsion x1, Weapon x1 860 | -9/Materials | Build established: Gunner 916 | -9/Materials | Lost 3 parts (1p2w) 959 | -9/Materials | Central database locked down 979 | -9/Materials | Discovered new exit (range 15) 1041 | -9/Materials | Entered another Materials area 1041 | -8/Materials | Evolved 2 slots: Utility x1, Weapon x1 1358 | -8/Materials | Discovered new exit (range 10) 1378 | -8/Materials | Entered Storage 1387 | -8/Storage | Build established: Tank 1462 | -8/Storage | Repaired Lgt. Armor Plating 1533 | -8/Storage | Met a pair of Derelict thieves 2203 | -8/Storage | Repaired Flak Cannon 2829 | -8/Storage | Used back door to open Recycling access 2829 | -8/Storage | Discovered new exit (range 5) 2920 | -8/Storage | Entered Recycling 3112 | -8/Recycling | Discovered new exit (range 9) 3766 | -8/Recycling | Scanned before Scraplab entrance 3799 | -8/Recycling | Entered Scraplab 3825 | -8/Recycling | Discovered new exit (range 3) 3829 | -8/Recycling | Entered Scraptown 3829 | -8/Scraptown | System corruption cleaned by C-Scrubber 4069 | -8/Scraptown | Visited UFD Registry 4074 | -8/Scraptown | Registered with UFD as "Metawalker" 4329 | -8/Scraptown | Discovered new exit (range 78) 4485 | -8/Scraptown | Discovered new exit (range 124) 5437 | -8/Scraptown | Visited Junk Repository 5871 | -8/Scraptown | Visited Sword Containment 5943 | -8/Scraptown | Visited Junk Repository 5973 | -8/Scraptown | Visited DA-N13 Charitable Foundation 5982 | -8/Scraptown | Found DCF Scrap (29 items) 6356 | -8/Scraptown | Visited Bundlers 6509 | -8/Scraptown | Attacked by Scraptown defenders 6530 | -8/Scraptown | Core integrity fell below 50% 6532 | -8/Scraptown | Released all parts (6) 6536 | -8/Scraptown | Core integrity fell below 20% 6539 | -8/Scraptown | Destroyed by 7E-E0R(g) with Beamcaster Last Messages --------------- 06528_ Wall collapses. 06530_ Com. Matter Pod destroyed. 06530_ Hrd. Medium Armor Plating destroyed. 06531_ Carbon-fiber Leg destroyed. 06531_ Critical hit (Destroy). 06531_ Adv. Assault Cannon destroyed. 06532_ Released Chainsword. 06532_ Released Carbon-fiber Leg. 06532_ Released Hcp. Storage Unit. 06532_ Released Cld. Ion Engine. 06532_ Released Companion Sword. Companion Sword: "Dropping me on the ground isn't good for our relationship." 06532_ Released Flexi-carbon Leg. 06532_ Bolt penetrates VS-IRT(p). 06532_ Penetrated by Bolt. 06533_ Acquired Companion Sword. 06535_ Slug penetrates Machine. 06535_ Machine disabled. 06539_ Critical hit (Burn: +37). Map ----- +----------------------------------------------------+ | | | | | | | | | ?????????????????????????????????????????????????? | | #####???????????????#########????????????????????? | | """"#???????????????#"" ##???????????????????? | | "#????????????????" < ##################### | | "" "#???#########?????? #?#"""""""""#""""""""" | | "" "#???#"""""""#???????# #?#" "#" " | | "" "#???#"" ""#???????# #?#" """ " | | "#???#"" ""#???????# #?#" "#" "" " | | """###?#""" ""#???????#k #?#" """ "#" " " | | #?#"" ""#??????## c ###" "#" " | | ###""" """######## ##"""""" ""#"" """""" | | | | | | | | ###### ########### ##########"" """"#### | | ###### ######????## ##????????#" =%"#??? | | #""""" """""#####?# #########?#" ! ""#??? | | #" " " #?# """"""""#?#" """#??? | | """ ""#" " " "### ###cEE" ""#?#" """#??? | | """ "#" " " "#"" """g "#?#"""""""#??? | | """ "#""""" """""#" """ p" ""#?#########??? | | "" "###### ######" @ """"""""#????????????? | | " "#""""" """""#" ##"""####???????#####? | | """ ""#" " " "#" "" " #?####??????????"""""" | | ### ###" " " "#" x #???########???"""" "" | | ??# " " "#"""""" #???# # # #??#"" " " | | ??#####""""" """""#######xr #??## " " ##?#"" "" | | #?????###### ######?????#px!#??#" "#?#" " | | ############ ############*=!#??# #?#" | | *!=h*/#??# #?#"" " | | !|rg]#??# #?#" | | #########################!]!#??# #?#" " | | #??????????????????????#[=! #??# #?#"" | | ########################"%%=########## ##### ##### | | """"""## !!#""" """ # [!*m | | "##! =]#" " "%" " *! | | ! ! "## *[ # !!! " | | ! *! "## ! ]# | | "## # # | | ! ! "#### ## # ############ #### | | ![ "##"" # #??# # | | != "##"%! # #??# # | | "##""] # #??#" "# | | """ ""## !!! # #??#" "# | | ### ####" "%%" # #??#" "# | | ### ####"" "" """" " # #??##""""""""""## | +----------------------------------------------------+ Best States ------------- Heat Dissipation 53 Energy Generation 18 Energy Capacity 480 Matter Stores 450 Matter Capacity 450 Sight Range 16 Terrain Scan Density 10 Armor Coverage 225 Evasion (%) 55 Recoil Reduction 3 Item Schematics ----------------- None Robot Schematics ------------------ None Fabricated ------------ Nothing Repaired ---------- Lgt. Armor Plating | 14% | -8/Storage Flak Cannon | 6% | -8/Storage Alien Tech Used ----------------- None Achievements -------------- None Challenges ------------ None Game ------ Seed LauncherReactiveStatue Manual? 0 Play Time 00:55:53 Cumulative 113.9 hours Start 2025.08.23 @ 16:08:18 End 2025.08.23 @ 18:04:59 Sessions 3 Manual Loads 0 Difficulty Rogue Special Mode None Game No. 146 Rogue 59 Adventurer 59 Explorer 28 Win Type - Total 15 Types 13/0/2/0/0/0/0/0/0/0 Lore% 36 Gallery% 59 Achievement% 49 Wizard Run 0 Options --------- Layout 2 ASCII 0 Keyboard 1 Movement Arrows Keybinds 1 Fullscreen 2 Font 32/Terminus Map View 50x44 Zoom Use 0% Tactical HUD 1 Map Filters NONE Filters NONE Steam 1 RUN: 1a0e3831-c30b-4f1a-8faf-135594d040b6